fUST/lending_fUST_20250627
["ID","MTS","AMOUNT","RATE_DAILY","PERIOD"]
[368139786,1751035850685,-847.13,0.00023287,2]
[368139787,1751035850694,-460.0,0.00023287,2]
[368139788,1751035850704,-729.38,0.00023287,2]
[368139789,1751035850713,-1130.91,0.00023287,2]
[368139790,1751035850722,-464.06,0.00023287,2]
[368139791,1751035850731,-895.22,0.00023287,2]
[368139792,1751035850740,-151.0,0.00023288,2]
[368139793,1751035850750,-151.0,0.00023288,2]
[368139794,1751035850759,-546.13404743,0.0002329,4]
[368139795,1751035850768,-546.13404743,0.0002329,4]
[368139796,1751035850778,-546.13404743,0.0002329,4]
[368139797,1751035850788,-546.13404743,0.0002329,4]
[368139798,1751035850798,-546.13404743,0.0002329,4]
[368139799,1751035850807,-546.13404743,0.0002329,4]
[368139800,1751035850818,-546.13404743,0.0002329,4]
[368139801,1751035850827,-546.13404743,0.0002329,4]
[368139802,1751035850836,-546.13404743,0.0002329,4]
[368139803,1751035850846,-546.13404743,0.0002329,4]
[368139804,1751035850855,-546.13404743,0.0002329,4]
[368139805,1751035850865,-546.13404743,0.0002329,4]
[368139806,1751035850876,-546.13404743,0.0002329,4]
[368139807,1751035850886,-546.13404743,0.0002329,4]
[368139808,1751035850896,-546.13404743,0.0002329,4]
[368139809,1751035850906,-546.13404743,0.0002329,4]
[368139810,1751035850916,-546.13404743,0.0002329,4]
[368139811,1751035850926,-546.13404743,0.0002329,4]
[368139812,1751035850936,-546.13404743,0.0002329,4]
[368139813,1751035850945,-546.13,0.0002329,4]
[368139814,1751035850955,-1274.31277733,0.0002329,4]
[368139815,1751035850965,-1274.31277733,0.0002329,4]
[368139816,1751035850976,-1274.31277733,0.0002329,4]
[368139817,1751035850989,-1274.31277733,0.0002329,4]
[368139818,1751035850999,-1274.31277733,0.0002329,4]
[368139819,1751035851009,-1274.31277733,0.0002329,4]
[368139820,1751035851019,-1274.31277733,0.0002329,4]
[368139821,1751035851029,-1274.31277733,0.0002329,4]
[368139822,1751035851039,-1274.31277733,0.0002329,4]
[368139823,1751035851049,-1274.31277733,0.0002329,4]
[368139824,1751035851059,-1274.31277733,0.0002329,4]
[368139825,1751035851069,-1274.31277733,0.0002329,4]
[368139826,1751035851079,-1274.31277733,0.0002329,4]
[368139827,1751035851088,-1274.31277733,0.0002329,4]
[368139828,1751035851097,-1274.31277733,0.0002329,4]
[368139829,1751035851107,-1274.31277733,0.0002329,4]
[368139830,1751035851115,-1274.31277733,0.0002329,4]
[368139831,1751035851125,-1274.31277733,0.0002329,4]
[368139832,1751035851134,-1274.31277733,0.0002329,4]
[368139833,1751035851145,-150.0,0.0002329,4]
[368139834,1751035851154,-150.0,0.0002329,4]
[368139835,1751035851164,-150.0,0.0002329,4]
[368139836,1751035851173,-150.0,0.0002329,4]
[368139837,1751035851182,-150.0,0.0002329,4]
[368139838,1751035851192,-150.0,0.0002329,4]
[368139839,1751035851202,-150.0,0.0002329,4]
[368139840,1751035851211,-150.0,0.0002329,4]
[368139841,1751035851221,-150.0,0.0002329,4]
[368139842,1751035851230,-150.0,0.0002329,4]
[368139843,1751035851240,-150.0,0.0002329,4]
[368139844,1751035851250,-150.0,0.0002329,4]
[368139845,1751035851259,-150.0,0.0002329,4]
[368139846,1751035851269,-150.0,0.0002329,4]
[368139847,1751035851278,-150.0,0.0002329,4]
[368139848,1751035851288,-150.0,0.0002329,4]
[368139849,1751035851298,-150.0,0.0002329,4]
[368139850,1751035851307,-150.0,0.0002329,4]
[368139851,1751035851318,-150.0,0.0002329,4]
[368139852,1751035851328,-150.0,0.0002329,4]
[368139853,1751035851337,-350.0,0.0002329,4]
[368139854,1751035851347,-350.0,0.0002329,4]
[368139855,1751035851356,-350.0,0.0002329,4]
[368139856,1751035851366,-350.0,0.0002329,4]
[368139857,1751035851376,-350.0,0.0002329,4]
[368139858,1751035851385,-350.0,0.0002329,4]
[368139859,1751035851395,-350.0,0.0002329,4]
[368139860,1751035851405,-350.0,0.0002329,4]
[368139861,1751035851415,-350.0,0.0002329,4]
[368139862,1751035851425,-350.0,0.0002329,4]
[368139863,1751035851435,-350.0,0.0002329,4]
[368139864,1751035851445,-350.0,0.0002329,4]
[368139865,1751035851454,-350.0,0.0002329,4]
[368139866,1751035851464,-350.0,0.0002329,4]
[368139867,1751035851474,-350.0,0.0002329,4]
[368139868,1751035851484,-350.0,0.0002329,4]
[368139869,1751035851496,-350.0,0.0002329,4]
[368139870,1751035851506,-350.0,0.0002329,4]
[368139871,1751035851516,-350.0,0.0002329,4]
[368139872,1751035851526,-298.10111853,0.0002329,4]
[368139873,1751035851536,-298.10111853,0.0002329,4]
[368139874,1751035851546,-298.10111853,0.0002329,4]
[368139875,1751035851555,-298.10111853,0.0002329,4]
[368139876,1751035851565,-298.10111853,0.0002329,4]
[368139877,1751035851575,-298.10111853,0.0002329,4]
[368139878,1751035851584,-298.10111853,0.0002329,4]
[368139879,1751035851594,-298.10111853,0.0002329,4]
[368139880,1751035851604,-298.10111853,0.0002329,4]
[368139881,1751035851613,-298.10111853,0.0002329,4]
[368139882,1751035851622,-298.10111853,0.0002329,4]
[368139883,1751035851632,-298.10111853,0.0002329,4]
[368139884,1751035851641,-298.10111853,0.0002329,4]
[368139885,1751035851651,-298.10111853,0.0002329,4]
[368139886,1751035851660,-298.10111853,0.0002329,4]
[368139887,1751035851669,-298.10111853,0.0002329,4]
[368139888,1751035851679,-298.10111853,0.0002329,4]
[368139889,1751035851688,-298.10111853,0.0002329,4]
[368139890,1751035851698,-298.10111853,0.0002329,4]
[368139891,1751035851707,-298.1,0.0002329,4]
[368139892,1751035851717,-695.56927658,0.0002329,4]
[368139893,1751035851727,-695.56927658,0.0002329,4]
[368139894,1751035851737,-695.56927658,0.0002329,4]
[368139895,1751035851748,-695.56927658,0.0002329,4]
[368139896,1751035851758,-695.56927658,0.0002329,4]
[368139897,1751035851768,-695.56927658,0.0002329,4]
[368139898,1751035851777,-695.56927658,0.0002329,4]
[368139899,1751035851787,-695.56927658,0.0002329,4]
[368139900,1751035851796,-695.56927658,0.0002329,4]
[368139901,1751035851805,-695.56927658,0.0002329,4]
[368139902,1751035851815,-695.56927658,0.0002329,4]
[368139903,1751035851825,-695.56927658,0.0002329,4]
[368139904,1751035851834,-695.56927658,0.0002329,4]
[368139905,1751035851844,-695.56927658,0.0002329,4]
[368139906,1751035851853,-695.56927658,0.0002329,4]
[368139907,1751035851862,-695.56927658,0.0002329,4]
[368139908,1751035851872,-695.56927658,0.0002329,4]
[368139909,1751035851882,-695.56927658,0.0002329,4]
[368139910,1751035851892,-695.56927658,0.0002329,4]
[368139911,1751035851902,-700.0,0.00023298,2]
[368139912,1751035851912,-151.0,0.000233,7]
[368139913,1751035851923,-151.0,0.00023315,2]
[368139914,1751035851933,-293.85068442,0.0002334,2]
[368139915,1751035851944,-159.1939926,0.00023342,2]
[368139916,1751035851955,-575.118961,0.00023342,2]
[368139917,1751035851965,-153.0,0.00023342,2]
[368139918,1751035851975,-153.0,0.00023342,2]
[368139919,1751035851984,-153.0,0.00023342,2]
[368139920,1751035851994,-153.0,0.00023342,2]
[368139921,1751035852003,-307.4082959,0.00023342,2]
[368139922,1751035852014,-151.0,0.00023343,2]
[368139923,1751035852023,-1300.0,0.00023348,2]
[368139924,1751035852033,-1200.0,0.00023353,2]
[368139925,1751035852043,-1300.0,0.00023368,2]
[368139926,1751035852053,-575.118961,0.0002337,2]
[368139927,1751035852063,-575.118961,0.0002337,2]
[368139928,1751035852077,-217.90292315,0.0002337,2]
[368139929,1751035852086,-1274.31,0.00023387,4]
[368139930,1751035852096,-350.0,0.00023387,4]
[368139931,1751035852106,-695.56,0.00023387,4]
[368139932,1751035852115,-403.0,0.0002339,2]
[368139933,1751035852125,-6709.53067678,0.00023417,9]
[368139934,1751035852134,-1300.0,0.00023422,2]
[368139935,1751035852144,-1200.0,0.00023487,2]
[368139936,1751035852153,-1200.0,0.00023488,2]
[368139937,1751035852163,-1200.0,0.00023507,2]
[368139938,1751035852172,-432.12858055,0.00023508,2]
[368139939,1751035852182,-161.25884635,0.0002351,2]
[368139940,1751035852192,-2000.0,0.0002352,2]
[368139941,1751035852201,-2000.0,0.0002352,2]
[368139942,1751035852211,-2400.0,0.0002352,2]
[368139943,1751035852222,-2000.0,0.0002352,2]
[368139944,1751035852233,-2000.0,0.0002352,2]
[368139945,1751035852242,-200.0,0.00023561,2]
[368139946,1751035852253,-200.0,0.00023561,2]
[368139947,1751035852262,-200.0,0.00023561,2]
[368139948,1751035852272,-200.0,0.00023561,2]
[368139949,1751035852281,-200.0,0.00023561,2]
[368139950,1751035852291,-200.0,0.00023561,2]
[368139951,1751035852300,-200.0,0.00023561,2]
[368139952,1751035852310,-200.0,0.00023561,2]
[368139953,1751035852321,-297.42413746,0.00023561,2]
[368139954,1751035852330,-460.0,0.00023561,2]
[368139955,1751035852339,-460.0,0.00023561,2]
[368139956,1751035852349,-485.73,0.00023561,2]
[368139957,1751035852358,-473.95,0.00023561,2]
[368139958,1751035852368,-2361.69,0.00023561,2]
[368139959,1751035852378,-460.0,0.00023561,2]
[368139960,1751035852388,-657.38,0.00023561,2]
[368139961,1751035852397,-460.0,0.00023561,2]
[368139962,1751035852406,-460.0,0.00023561,2]
[368139963,1751035852416,-660.65,0.00023561,2]
[368139964,1751035852426,-1113.88,0.00023561,2]
[368139965,1751035852435,-460.0,0.00023561,2]
[368139966,1751035852446,-509.06,0.00023561,2]
[368139967,1751035852455,-1647.85,0.00023561,2]
[368139968,1751035852465,-1196.89,0.00023561,2]
[368139969,1751035852475,-1436.65,0.00023561,2]
[368139970,1751035852485,-2430.69,0.00023561,2]
[368139971,1751035852497,-1745.06,0.00023561,2]
[368139972,1751035852507,-460.0,0.00023561,2]
[368139973,1751035852516,-593.12,0.00023561,2]
[368139974,1751035852527,-847.13,0.00023561,2]
[368139975,1751035852537,-460.0,0.00023561,2]
[368139976,1751035852547,-729.38,0.00023561,2]
[368139977,1751035852556,-1130.91,0.00023561,2]
[368139978,1751035852565,-464.06,0.00023561,2]
[368139979,1751035852575,-895.22,0.00023561,2]
[368139980,1751035852585,-500.56304579,0.00023573,2]
[368139981,1751035852594,-700.0,0.00023576,2]
[368139982,1751035852604,-159.1939926,0.00023578,2]
[368139983,1751035852613,-912.797672,0.00023578,2]
[368139984,1751035852623,-575.118961,0.00023578,2]
[368139985,1751035852632,-575.118961,0.00023578,2]
[368139986,1751035852641,-1150.237922,0.00023578,2]
[368139987,1751035852651,-10093.28426925,0.00023597,2]
[368139988,1751035852660,-1200.0,0.00023607,2]
[368139989,1751035852670,-700.0,0.00023611,2]
[368139990,1751035852679,-300.0,0.00023621,2]
[368139991,1751035852688,-1200.0,0.00023621,2]
[368139992,1751035852699,-5000.0,0.00023623,2]
[368139993,1751035852708,-1300.0,0.00023624,2]
[368139994,1751035852717,-6709.53067678,0.00023624,9]
[368139995,1751035852727,-709.311104,0.00023626,4]
[368139996,1751035852737,-250.0,0.00023655,2]
[368139997,1751035852746,-460.0,0.00023671,2]
[368139998,1751035852755,-432.50073679,0.00023671,2]
[368139999,1751035852765,-375.0,0.00023671,2]
[368140000,1751035852774,-225.0,0.00023671,2]
[368140001,1751035852784,-151.0,0.000237,9]
[368140002,1751035852793,-700.0,0.00023709,2]
[368140003,1751035852803,-2500.0,0.00023715,2]
[368140004,1751035852812,-1050.60417377,0.00023715,2]
[368140005,1751035853024,-1449.39582623,0.00023715,2]
[368140006,1751035853034,-1530.41482671,0.00023715,2]
[368140007,1751035853044,-52.6596634,0.00023742,2]
[368140008,1751035853056,-451.62601156,0.00023742,2]
[368140009,1751035853069,-195.71432504,0.00023742,2]
[368140010,1751035853079,-1200.0,0.00023758,2]
[368140011,1751035853088,-1300.0,0.00023785,2]
[368140012,1751035853098,-196.23639172,0.00023831,10]
[368140013,1751035853190,-383.1922272,0.00023013,2]
[368140014,1751035853288,-160.0,0.00023,3]
[368140015,1751035853298,-381.65,0.00023013,2]
[368140016,1751035853311,-666.1677728,0.00023013,2]
[368140017,1751035853321,-137.89927012,0.000231,7]
[368140018,1751035853333,-75.58884988,0.000231,7]
[368140019,1751035853343,-569.70115012,0.00023287,2]
[368140020,1751035853355,-777.63099016,0.00023287,2]
[368140021,1751035853367,-83.67785972,0.00023287,2]
[368140022,1751035853378,-1431.01,0.00023561,2]
[368140023,1751035853388,-1442.61444985,0.00023831,10]
[368140024,1751035853650,-460.0,0.00019178,2]
[368140025,1751035853660,-460.0,0.00019178,2]
[368140026,1751035853670,-389.29355504,0.00019178,2]
[368140027,1751035853680,-460.0,0.00019178,2]
[368140028,1751035853691,-500.0,0.00019452,2]
[368140029,1751035853703,-460.0,0.00019452,2]
[368140030,1751035853713,-460.0,0.00019726,2]
[368140031,1751035853723,-151.0,0.000231,7]
[368140032,1751035853733,-5070.67983521,0.00023831,10]
[368140033,1751035853743,-298.84277563,0.00023835,2]
[368140034,1751035853753,-460.0,0.00023835,2]
[368140035,1751035853762,-485.73,0.00023835,2]
[368140036,1751035853771,-2361.69,0.00023835,2]
[368140037,1751035853781,-460.0,0.00023835,2]
[368140038,1751035853791,-657.38,0.00023835,2]
[368140039,1751035853801,-460.0,0.00023835,2]
[368140040,1751035853811,-304.5,0.00023835,2]
[368140041,1751035853821,-660.65,0.00023835,2]
[368140042,1751035853831,-1113.88,0.00023835,2]
[368140043,1751035853841,-460.0,0.00023835,2]
[368140044,1751035853851,-509.06,0.00023835,2]
[368140045,1751035853860,-1647.85,0.00023835,2]
[368140046,1751035853870,-1196.89,0.00023835,2]
[368140047,1751035853880,-1436.65,0.00023835,2]
[368140048,1751035853890,-2430.69,0.00023835,2]
[368140049,1751035853900,-1745.06,0.00023835,2]
[368140050,1751035853909,-460.0,0.00023835,2]
[368140051,1751035853918,-593.12,0.00023835,2]
[368140052,1751035853927,-847.13,0.00023835,2]
[368140053,1751035853937,-460.0,0.00023835,2]
[368140054,1751035853947,-729.38,0.00023835,2]
[368140055,1751035853956,-1130.91,0.00023835,2]
[368140056,1751035853966,-464.06,0.00023835,2]
[368140057,1751035853975,-895.22,0.00023835,2]
[368140058,1751035853985,-1431.01,0.00023835,2]
[368140059,1751035853995,-700.0,0.00023838,2]
[368140060,1751035854004,-1300.0,0.00023845,2]
[368140061,1751035854013,-700.0,0.00023875,2]
[368140062,1751035854022,-700.0,0.00023883,2]
[368140063,1751035854031,-215.0738,0.00023896,2]
[368140064,1751035854040,-1300.0,0.00023951,2]
[368140065,1751035854049,-1200.0,0.00023962,2]
[368140066,1751035854058,-7392.02763232,0.00024,2]
[368140067,1751035854067,-1305.71351922,0.00024,30]
[368140068,1751035854076,-11747.62515278,0.00024,2]
[368140069,1751035854097,-500.0,0.00019452,2]
[368140070,1751035854106,-1946.75770144,0.00024,2]
[368140071,1751036172466,165.2485484,0.000222,69]
[368140072,1751036177435,165.24854837,0.000222,69]
[368140073,1751036182431,165.24854837,0.00022392,70]
[368140074,1751036338508,162.781146,0.00013699,2]
[368140077,1751036623107,165.24854837,0.000222,69]
[368140079,1751036753173,-1738.45770345,0.00018175,2]
[368140080,1751036754079,-1433.95901517,0.00018175,2]
[368140081,1751036869661,200.0,0.00023,30]
[368140083,1751036958650,-153.0,0.00018174,2]
[368140084,1751036958671,-300.0,0.00018174,2]
[368140085,1751036958695,-21727.58328138,0.00018175,2]
[368140086,1751036958716,-1200.0,0.00018245,2]
[368140087,1751036958738,-9121.94882104,0.00018246,2]
[368140120,1751037032181,-307.956401,0.00018173,2]
[368140121,1751037032191,-670.65942366,0.00018246,2]
[368140122,1751037032201,-212.54100292,0.00019065,2]
[368140123,1751037032210,-292.80647897,0.00019166,2]
[368140124,1751037032220,-300.0,0.00019172,2]
[368140126,1751037032229,-300.0,0.00019172,2]
[368140128,1751037032238,-527.81294865,0.00019173,2]
[368140130,1751037032247,-500.0,0.00019173,2]
[368140132,1751037032257,-501.24090785,0.00019173,2]
[368140134,1751037032265,-468.18059167,0.00019175,2]
[368140136,1751037032275,-383.82736876,0.00019175,2]
[368140138,1751037032284,-305.49120709,0.00019175,2]
[368140140,1751037032293,-500.0,0.00019175,2]
[368140142,1751037032303,-500.0,0.00019175,2]
[368140143,1751037032314,-503.36492039,0.00019175,2]
[368140145,1751037032323,-500.0,0.00019175,2]
[368140147,1751037032334,-500.0,0.00019175,2]
[368140150,1751037032343,-500.0,0.00019175,2]
[368140151,1751037032353,-500.0,0.00019175,2]
[368140153,1751037032364,-494.43542243,0.00019175,2]
[368140156,1751037032376,-503.99680582,0.00019175,2]
[368140158,1751037032389,-500.0,0.00019175,2]
[368140160,1751037032399,-500.0,0.00019175,2]
[368140162,1751037032409,-500.0,0.00019175,2]
[368140164,1751037032419,-500.0,0.00019175,2]
[368140166,1751037032428,-215.214108,0.00019175,2]
[368140167,1751037032438,-216.86346778,0.00019175,2]
[368140171,1751037032458,-283.13653222,0.00019175,2]
[368140173,1751037032467,-616.28094779,0.00019175,2]
[368140175,1751037032476,-500.0,0.00019175,2]
[368140177,1751037032486,-500.0,0.00019175,2]
[368140179,1751037032496,-262.95290733,0.00019175,2]
[368140181,1751037032504,-181.16979262,0.00019175,2]
[368140182,1751037032516,-318.83020738,0.00019175,2]
[368140183,1751037032525,-232.26890062,0.00019175,2]
[368140184,1751037032534,-500.0,0.00019175,2]
[368140185,1751037032543,-500.0,0.00019175,2]
[368140186,1751037032552,-500.0,0.00019175,2]
[368140187,1751037032561,-500.0,0.00019175,2]
[368140188,1751037032571,-460.0,0.00019178,2]
[368140189,1751037032580,-460.0,0.00019178,2]
[368140190,1751037032589,-440.49910396,0.00019178,2]
[368140191,1751037032598,-460.0,0.00019178,2]
[368140192,1751037032607,-460.0,0.00019178,2]
[368140201,1751037032752,-460.0,0.00019178,2]
[368140203,1751037032761,-318.27916767,0.00019178,2]
[368140205,1751037032771,-439.80877188,0.00019178,2]
[368140207,1751037032780,-455.0,0.00019178,2]
[368140209,1751037032789,-460.0,0.00019178,2]
[368140211,1751037032799,-464.61617947,0.00019178,2]
[368140213,1751037032808,-54.85714627,0.00019178,2]
[368140763,1751037038271,-410.86770686,0.00019178,2]
[368140765,1751037038281,-460.0,0.00019178,2]
[368140767,1751037038291,-464.40072534,0.00019178,2]
[368140769,1751037038303,-435.43723935,0.00019178,2]
[368140771,1751037038312,-460.0,0.00019178,2]
[368140773,1751037038322,-460.0,0.00019178,2]
[368140775,1751037038332,-460.0,0.00019178,2]
[368140777,1751037038341,-424.56224182,0.00019178,2]
[368140779,1751037038350,-202.88,0.00019178,2]
[368140781,1751037038360,-460.0,0.00019178,2]
[368140783,1751037038370,-460.0,0.00019178,2]
[368140785,1751037038380,-461.45113583,0.00019178,2]
[368140787,1751037038393,-460.0,0.00019178,2]
[368140789,1751037038402,-460.88340503,0.00019178,2]
[368140791,1751037038411,-460.0,0.00019178,2]
[368140793,1751037038422,-460.0,0.00019178,2]
[368140795,1751037038434,-460.72158215,0.00019178,2]
[368140797,1751037038444,-460.0,0.00019178,2]
[368140799,1751037038453,-460.0,0.00019178,2]
[368140801,1751037038463,-460.0,0.00019178,2]
[368140803,1751037038473,-385.24756272,0.00019178,2]
[368140805,1751037038482,-460.0,0.00019178,2]
[368140807,1751037038491,-460.0,0.00019178,2]
[368140809,1751037038501,-460.0,0.00019178,2]
[368140811,1751037038510,-460.0,0.00019178,2]
[368140813,1751037038520,-423.69189455,0.00019178,2]
[368140815,1751037038529,-460.0,0.00019178,2]
[368140817,1751037038538,-460.0,0.00019178,2]
[368140819,1751037038548,-460.0,0.00019178,2]
[368140821,1751037038559,-582.39750771,0.00019178,2]
[368140823,1751037038568,-460.0,0.00019178,2]
[368140825,1751037038578,-466.54447998,0.00019178,2]
[368140827,1751037038587,-460.0,0.00019178,2]
[368140829,1751037038596,-274.84049211,0.00019178,2]
[368140831,1751037038606,-500.0,0.00019178,2]
[368140833,1751037038615,-462.45224602,0.00019178,2]
[368140835,1751037038624,-460.0,0.00019178,2]
[368140837,1751037038633,-388.51692016,0.00019178,2]
[368140839,1751037038643,-460.0,0.00019178,2]
[368140841,1751037038652,-584.64946507,0.00019178,2]
[368140843,1751037038661,-460.0,0.00019178,2]
[368140845,1751037038671,-460.0,0.00019178,2]
[368140847,1751037038680,-460.0,0.00019178,2]
[368140849,1751037038690,-460.0,0.00019178,2]
[368140851,1751037038699,-460.0,0.00019178,2]
[368140853,1751037038709,-448.17016079,0.00019178,2]
[368140855,1751037038718,-460.0,0.00019178,2]
[368140857,1751037038727,-460.0,0.00019178,2]
[368140859,1751037038737,-460.0,0.00019178,2]
[368140861,1751037038747,-460.0,0.00019178,2]
[368140863,1751037038756,-460.0,0.00019178,2]
[368140865,1751037038765,-460.0,0.00019178,2]
[368140867,1751037038775,-460.0,0.00019178,2]
[368140869,1751037038784,-460.0,0.00019178,2]
[368140871,1751037038793,-460.0,0.00019178,2]
[368140873,1751037038804,-460.0,0.00019178,2]
[368140875,1751037038814,-451.55096451,0.00019178,2]
[368140877,1751037038824,-338.09934342,0.00019178,2]
[368140879,1751037038834,-460.0,0.00019178,2]
[368140881,1751037038843,-460.0,0.00019178,2]
[368140883,1751037038852,-398.05,0.00019178,2]
[368140885,1751037038862,-460.0,0.00019178,2]
[368140887,1751037038871,-460.0,0.00019178,2]
[368140889,1751037038880,-460.0,0.00019178,2]
[368140891,1751037038890,-460.0,0.00019178,2]
[368140893,1751037038899,-460.0,0.00019178,2]
[368140895,1751037038908,-483.25,0.00019178,2]
[368140897,1751037038917,-460.0,0.00019178,2]
[368140899,1751037038927,-460.0,0.00019178,2]
[368140901,1751037038936,-460.0,0.00019178,2]
[368140903,1751037038946,-577.94619889,0.00019178,2]
[368140905,1751037038956,-460.0,0.00019178,2]
[368140907,1751037038965,-460.0,0.00019178,2]
[368140909,1751037038974,-460.0,0.00019178,2]
[368140911,1751037038984,-463.54,0.00019178,2]
[368140913,1751037038994,-460.0,0.00019178,2]
[368140915,1751037039004,-460.0,0.00019178,2]
[368140917,1751037039014,-460.0,0.00019178,2]
[368140919,1751037039023,-460.0,0.00019178,2]
[368140921,1751037039032,-181.32348082,0.00019178,2]
[368140923,1751037039042,-460.0,0.00019178,2]
[368140925,1751037039052,-460.0,0.00019178,2]
[368140927,1751037039062,-593.26937783,0.00019178,2]
[368140929,1751037039071,-353.91517458,0.00019178,2]
[368140931,1751037039081,-460.0,0.00019178,2]
[368140933,1751037039091,-500.0,0.00019178,2]
[368140935,1751037039100,-460.0,0.00019178,2]
[368140937,1751037039109,-460.0,0.00019178,2]
[368140939,1751037039119,-460.0,0.00019178,2]
[368140941,1751037039128,-460.0,0.00019178,2]
[368140943,1751037039138,-460.0,0.00019178,2]
[368140945,1751037039148,-460.0,0.00019178,2]
[368140947,1751037039157,-460.0,0.00019178,2]
[368140949,1751037039166,-539.83774693,0.00019178,2]
[368140950,1751037039175,-460.0,0.00019178,2]
[368140952,1751037039186,-460.0,0.00019178,2]
[368140954,1751037039195,-460.0,0.00019178,2]
[368140956,1751037039205,-460.0,0.00019178,2]
[368140959,1751037039214,-460.0,0.00019178,2]
[368140960,1751037039223,-460.0,0.00019178,2]
[368140962,1751037039233,-460.0,0.00019178,2]
[368140964,1751037039242,-460.0,0.00019178,2]
[368140966,1751037039251,-460.0,0.00019178,2]
[368140967,1751037039260,-460.0,0.00019178,2]
[368140968,1751037039269,-460.0,0.00019178,2]
[368140969,1751037039278,-460.0,0.00019178,2]
[368140970,1751037039288,-460.0,0.00019178,2]
[368140973,1751037039298,-460.0,0.00019178,2]
[368140974,1751037039308,-460.0,0.00019178,2]
[368140976,1751037039318,-460.0,0.00019178,2]
[368140978,1751037039327,-460.0,0.00019178,2]
[368140980,1751037039336,-460.0,0.00019178,2]
[368140983,1751037039346,-460.0,0.00019178,2]
[368140986,1751037039366,-548.66,0.00019178,2]
[368140988,1751037039376,-460.0,0.00019178,2]
[368140990,1751037039387,-460.0,0.00019178,2]
[368140992,1751037039397,-460.0,0.00019178,2]
[368140994,1751037039407,-460.0,0.00019178,2]
[368140996,1751037039417,-460.0,0.00019178,2]
[368140998,1751037039427,-514.72,0.00019178,2]
[368141000,1751037039437,-1049.26,0.00019178,2]
[368141002,1751037039449,-460.0,0.00019178,2]
[368141004,1751037039459,-460.0,0.00019178,2]
[368141006,1751037039470,-245.89,0.00019178,2]
[368141008,1751037039481,-500.0,0.00019178,2]
[368141011,1751037039491,-460.0,0.00019178,2]
[368141013,1751037039501,-427.70169704,0.00019178,2]
[368141016,1751037039511,-460.0,0.00019178,2]
[368141018,1751037039521,-327.69286312,0.00019178,2]
[368141020,1751037039531,-460.0,0.00019178,2]
[368141022,1751037039541,-460.0,0.00019178,2]
[368141024,1751037039552,-638.05,0.00019178,2]
[368141026,1751037039561,-460.0,0.00019178,2]
[368141028,1751037039571,-460.0,0.00019178,2]
[368141030,1751037039581,-460.0,0.00019178,2]
[368141032,1751037039591,-460.0,0.00019178,2]
[368141034,1751037039601,-460.0,0.00019178,2]
[368141036,1751037039611,-460.0,0.00019178,2]
[368141038,1751037039621,-462.94828053,0.00019178,2]
[368141040,1751037039631,-460.0,0.00019178,2]
[368141042,1751037039640,-460.0,0.00019178,2]
[368141044,1751037039650,-460.0,0.00019178,2]
[368141046,1751037039661,-460.0,0.00019178,2]
[368141048,1751037039671,-510.36,0.00019178,2]
[368141050,1751037039681,-460.0,0.00019178,2]
[368141052,1751037039690,-1068.57,0.00019178,2]
[368141054,1751037039700,-460.0,0.00019178,2]
[368141057,1751037039711,-460.0,0.00019178,2]
[368141059,1751037039720,-460.0,0.00019178,2]
[368141061,1751037039731,-546.21,0.00019178,2]
[368141063,1751037039741,-460.0,0.00019178,2]